[Event "Polish Youth 1st League 2022"]
[Site "Lublin"]
[Date "2022.06.26"]
[Round "2.20"]
[White "Klaska, Szymon"]
[Black "Bachor, Tomasz"]
[Result "0-1"]
[ECO "B62"]
[WhiteElo "1563"]
[BlackElo "1971"]
[Annotator "NA RC"]
[PlyCount "116"]
[EventDate "2022.06.24"]
[EventType "team-tourn"]
[EventCountry "POL"]
[SourceTitle "playchess.com"]
[Source "ChessBase"]
[SourceQuality "1"]
[TimeControl "40/5400+30:1800+30"]

1. e4 {[%emt 0:00:08]} c5 {[%emt 0:00:09]} 2. Nf3 {[%emt 0:00:30]} d6 {[%emt 0:01:28]} 3. d4 {[%emt 0:00:46]} cxd4 {[%emt 0:00:05]} 4. Nxd4 {[%emt 0:00:24]} Nf6 {[%emt 0:00:08]} 5. Nc3 {[%emt 0:01:20]} Nc6 {[%emt 0:00:09]} 6. Bg5 {[%emt 0:02:02]} e6 {[%emt 0:00:15]} 7. Bc4 {[%emt 0:01:12]} a6 {[%emt 0:02:38]} 8. O-O {[%emt 0:04:06]} Be7 {[%emt 0:02:14]} 9. Qd2 {[%emt 0:02:33]} Bd7 {[%emt 0:08:33]} 10. a4 {[%emt 0:01:37]} Rc8 {[%emt 0:01:32]} 11. Be2 {[%emt 0:03:23]} O-O {[%emt 0:02:44]} 12. Kh1 {[%emt 0:02:45]} Qb6 {[%emt 0:12:11]} 13. Be3 {[%emt 0:01:57]} Qc7 {[%emt 0:00:58]} 14. f4 {[%emt 0:00:56]} Rfd8 {[%emt 0:06:06]} 15. Bf3 {[%emt 0:04:50]} Na5 {[%emt 0:04:35]} 16. Rae1 {[%emt 0:03:58]} Nc4 {[%emt 0:00:22]} 17. Qc1 {[%emt 0:00:09]} Nxe3 {[%emt 0:03:24]} 18. Qxe3 {[%emt 0:00:22]} Bc6 {[%emt 0:03:42]} 19. g4 {[%emt 0:05:43]} e5 {[%emt 0:02:40]} 20. Nf5 {[%emt 0:02:01]} Bf8 {[%emt 0:07:18]} 21. fxe5 {[%emt 0:04:10]} dxe5 {[%emt 0:01:04]} 22. Qg5 {[%emt 0:00:28]} Kh8 {[%emt 0:02:03]} 23. Bg2 {[%emt 0:02:12]} Ng8 {[%emt 0:05:33]} 24. Nd5 {[%emt 0:04:45]} Bxd5 {[%emt 0:00:46]} 25. exd5 {[%emt 0:00:08]} f6 {[%emt 0:06:03]} 26. Qh4 {[%emt 0:02:36]} g6 {[%emt 0:03:28]} 27. Ne3 {[%emt 0:03:09]} Qg7 {[%emt 0:02:46]} 28. Be4 {[%emt 0:04:41]} Be7 {[%emt 0:02:18]} 29. Qh3 {[%emt 0:00:53]} Nh6 {[%emt 0:02:40]} 30. d6 {[%emt 0:08:39]} Bxd6 {[%emt 0:00:38]} 31. Nd5 {[%emt 0:00:15]} Ng8 {[%emt 0:03:32]} 32. Qf3 {[%emt 0:00:01]} Rf8 {[%emt 0:00:34]} 33. Nb6 {[%emt 0:02:54]} Rc7 {[%emt 0:00:49]} 34. Nd5 {[%emt 0:02:33]} Rcf7 {[%emt 0:00:29]} 35. Ne3 {[%emt 0:00:37]} Nh6 {[%emt 0:03:17]} 36. Bd5 {[%emt 0:01:17]} Rc7 {[%emt 0:00:33]} 37. c3 {[%emt 0:01:36]} b5 {[%emt 0:01:51]} 38. axb5 {[%emt 0:01:28]} axb5 {[%emt 0:00:04]} 39. Rd1 {[%emt 0:00:33]} Bc5 {[%emt 0:01:20]} 40. Ng2 {[%emt 0:00:00]} f5 {[%emt 0:00:00]} 41. g5 {[%emt 0:02:43]} Nf7 {[%emt 0:03:36]} 42. Bxf7 Rcxf7 {[%emt 0:12:48]} 43. Qc6 {[%emt 0:02:34]} Be7 {[%emt 0:00:16]} 44. h4 {[%emt 0:03:17]} b4 {[%emt 0:00:43]} 45. cxb4 {[%emt 0:01:01]} Bxb4 {[%emt 0:00:05]} 46. Qb5 {[%emt 0:00:41]} Rb7 {[%emt 0:00:25]} 47. Qc4 {[%emt 0:00:53]} Ba5 {[%emt 0:03:02]} 48. b3 {[%emt 0:01:10]} Bb6 {[%emt 0:01:08]} 49. Rfe1 Bd4 {[%emt 0:00:54]} 50. Nf4 {[%emt 0:03:43]} exf4 {[%emt 0:08:36]} 51. Rxd4 {[%emt 0:00:01]} Rxb3 {[%emt 0:01:15]} 52. Rxf4 {[%emt 0:00:51]} Qb7+ {[%emt 0:00:44]} 53. Kh2 {[%emt 0:01:08]} Rd8 {[%emt 0:02:34]} 54. Rf2 {[%emt 0:04:39]} Rb4 {[%emt 0:01:37]} 55. Qc3+ {[%emt 0:00:06]} Kg8 {[%emt 0:00:32]} 56. Qf6 {[%emt 0:05:49]} Rxh4+ {[%emt 0:00:35]} 57. Kg3 Rd3+ {[%emt 0:00:46]} 58. Kxh4 {[%emt 0:00:56]} Qb4+ {[%emt 0:00:04]} 0-1

[Event "Polish Youth 1st League 2022"]
[Site "Lublin"]
[Date "2022.06.26"]
[Round "2.21"]
[White "Cieslak, Patryk"]
[Black "Ugorek, Kacper"]
[Result "1/2-1/2"]
[ECO "B04"]
[WhiteElo "2019"]
[BlackElo "1696"]
[Annotator "NA RC"]
[PlyCount "101"]
[EventDate "2022.06.24"]
[EventType "team-tourn"]
[EventCountry "POL"]
[SourceTitle "playchess.com"]
[Source "ChessBase"]
[SourceQuality "1"]
[TimeControl "40/5400+30:1800+30"]

1. e4 {[%emt 0:00:30]} Nf6 {[%emt 0:00:13]} 2. e5 {[%emt 0:00:13]} Nd5 {[%emt 0:00:07]} 3. d4 {[%emt 0:00:10]} d6 {[%emt 0:00:08]} 4. Nf3 {[%emt 0:00:03]} Nb6 {[%emt 0:00:44]} 5. a4 {[%emt 0:00:29]} a5 {[%emt 0:00:40]} 6. Nc3 {[%emt 0:01:11]} Bg4 {[%emt 0:08:08]} 7. exd6 {[%emt 0:02:35]} exd6 {[%emt 0:00:45]} 8. Be2 {[%emt 0:04:11]} Be7 {[%emt 0:01:03]} 9. O-O {[%emt 0:03:57]} O-O {[%emt 0:00:58]} 10. h3 {[%emt 0:12:13]} Bh5 {[%emt 0:01:30]} 11. d5 {[%emt 0:02:22]} N8d7 {[%emt 0:05:00]} 12. Nb5 {[%emt 0:10:16]} Nf6 {[%emt 0:19:19]} 13. Nc3 {[%emt 0:02:32]} Nfd7 {[%emt 0:03:05]} 14. Be3 {[%emt 0:00:28]} Bf6 {[%emt 0:01:40]} 15. Nd4 {[%emt 0:04:45]} Bxe2 {[%emt 0:01:49]} 16. Qxe2 {[%emt 0:00:17]} Re8 {[%emt 0:00:52]} 17. Ndb5 {[%emt 0:02:39]} Nc5 {[%emt 0:05:20]} 18. Qd1 {[%emt 0:02:36]} Nc4 {[%emt 0:03:31]} 19. Bxc5 {[%emt 0:01:02]} dxc5 {[%emt 0:00:13]} 20. b3 {[%emt 0:04:34]} Nd6 {[%emt 0:03:52]} 21. Nxd6 {[%emt 0:00:50]} Qxd6 {[%emt 0:02:45]} 22. Nb5 {[%emt 0:01:45]} Qe5 {[%emt 0:01:00]} 23. Qd2 {[%emt 0:02:05]} c6 {[%emt 0:10:38]} 24. Rae1 {[%emt 0:03:53]} Qxd5 {[%emt 0:03:19]} 25. Qxd5 {[%emt 0:00:19]} cxd5 {[%emt 0:00:08]} 26. Nc7 {[%emt 0:00:11]} Rxe1 {[%emt 0:03:06]} 27. Rxe1 {[%emt 0:00:07]} Rd8 {[%emt 0:06:13]} 28. Nxd5 {[%emt 0:00:27]} Kf8 {[%emt 0:01:25]} 29. Nxf6 {[%emt 0:03:49]} gxf6 {[%emt 0:00:01]} 30. Re3 {[%emt 0:02:21]} Rd1+ {[%emt 0:01:37]} 31. Kh2 {[%emt 0:00:02]} Rd2 {[%emt 0:01:07]} 32. Rc3 {[%emt 0:00:54]} b6 {[%emt 0:00:00]} 33. Kg3 {[%emt 0:00:38]} Ke7 {[%emt 0:00:08]} 34. Kf3 {[%emt 0:00:46]} Ke6 {[%emt 0:00:55]} 35. Ke3 {[%emt 0:01:12]} Rd1 {[%emt 0:00:42]} 36. Ke2 {[%emt 0:01:26]} Rd8 {[%emt 0:01:22]} 37. g4 {[%emt 0:07:10]} f5 {[%emt 0:08:42]} 38. Re3+ {[%emt 0:11:42]} Kf6 {[%emt 0:00:07]} 39. Rf3 {[%emt 0:00:05]} Rd5 {[%emt 0:00:24]} 40. Ke3 {[%emt 0:00:00]} Kg5 {[%emt 0:00:00]} 41. gxf5 {[%emt 0:08:59]} Rxf5 {[%emt 0:07:49]} 42. Rg3+ {[%emt 0:00:47]} Kf6 {[%emt 0:00:32]} 43. f4 {[%emt 0:03:02]} Rd5 {[%emt 0:03:01]} 44. Rg8 {[%emt 0:01:45]} Rh5 {[%emt 0:05:58]} 45. Ke4 {[%emt 0:00:34]} Rxh3 {[%emt 0:00:41]} 46. Rb8 {[%emt 0:00:06]} Rc3 {[%emt 0:01:01]} 47. Rxb6+ {[%emt 0:00:04]} Kg7 {[%emt 0:01:49]} 48. Kf5 {[%emt 0:03:48]} Rxc2 {[%emt 0:01:56]} 49. Ra6 {[%emt 0:01:12]} c4 {[%emt 0:00:44]} 50. bxc4 {[%emt 0:00:21]} Rxc4 {[%emt 0:00:06]} 51. Rxa5 {[%emt 0:00:21]} 1/2-1/2

[Event "Polish Youth 1st League 2022"]
[Site "Lublin"]
[Date "2022.06.26"]
[Round "2.22"]
[White "Dobosiewicz, Dawid"]
[Black "Brzezina, Piotr"]
[Result "1-0"]
[ECO "A36"]
[WhiteElo "1795"]
[BlackElo "1633"]
[Annotator "NA RC"]
[PlyCount "129"]
[EventDate "2022.06.24"]
[EventType "team-tourn"]
[EventCountry "POL"]
[SourceTitle "playchess.com"]
[Source "ChessBase"]
[SourceQuality "1"]
[TimeControl "40/5400+30:1800+30"]

1. c4 {[%emt 0:00:02]} c5 {[%emt 0:00:07]} 2. g3 {[%emt 0:00:22]} g6 {[%emt 0:00:07]} 3. Bg2 {[%emt 0:00:32]} Bg7 {[%emt 0:00:16]} 4. Nc3 {[%emt 0:00:33]} Nc6 {[%emt 0:00:23]} 5. d3 {[%emt 0:02:07]} e6 {[%emt 0:01:41]} 6. e4 {[%emt 0:05:44]} Nge7 {[%emt 0:02:12]} 7. Nge2 {[%emt 0:00:26]} O-O {[%emt 0:01:24]} 8. O-O {[%emt 0:04:03]} Nd4 {[%emt 0:09:17]} 9. Rb1 {[%emt 0:03:48]} Nec6 {[%emt 0:02:31]} 10. a3 {[%emt 0:01:22]} Nxe2+ {[%emt 0:02:23]} 11. Nxe2 {[%emt 0:01:34]} a6 {[%emt 0:17:09]} 12. b4 {[%emt 0:01:50]} cxb4 {[%emt 0:00:08]} 13. axb4 {[%emt 0:00:04]} b5 {[%emt 0:00:14]} 14. Be3 {[%emt 0:10:29]} Rb8 {[%emt 0:09:31]} 15. c5 {[%emt 0:04:35]} Re8 {[%emt 0:11:26]} 16. d4 {[%emt 0:01:46]} d5 {[%emt 0:01:04]} 17. Bf4 {[%emt 0:03:03]} Rb7 {[%emt 0:03:16]} 18. Bd6 {[%emt 0:01:40]} Rd7 {[%emt 0:05:33]} 19. e5 {[%emt 0:15:51]} Bf8 {[%emt 0:06:59]} 20. Qd3 {[%emt 0:01:10]} Bxd6 {[%emt 0:02:38]} 21. cxd6 {[%emt 0:00:13]} Rb7 {[%emt 0:00:45]} 22. Rfc1 {[%emt 0:00:42]} Bd7 {[%emt 0:00:48]} 23. Nf4 {[%emt 0:01:59]} Rb8 {[%emt 0:02:03]} 24. Rc5 {[%emt 0:02:16]} Kg7 {[%emt 0:01:35]} 25. Qc3 {[%emt 0:00:41]} Rc8 {[%emt 0:00:54]} 26. Ra1 {[%emt 0:00:53]} Nb8 {[%emt 0:03:27]} 27. Nd3 {[%emt 0:01:34]} Bc6 {[%emt 0:00:36]} 28. Rc1 {[%emt 0:01:43]} Qb6 {[%emt 0:00:55]} 29. Qa3 {[%emt 0:03:03]} Nd7 {[%emt 0:02:54]} 30. R5c2 {[%emt 0:00:10]} Bb7 {[%emt 0:00:11]} 31. Nc5 {[%emt 0:00:12]} Nxc5 {[%emt 0:00:13]} 32. Rxc5 {[%emt 0:00:23]} Rxc5 {[%emt 0:00:10]} 33. Rxc5 {[%emt 0:00:29]} Rc8 {[%emt 0:00:49]} 34. Qc3 {[%emt 0:01:16]} Rxc5 {[%emt 0:00:20]} 35. dxc5 {[%emt 0:00:47]} Qc6 {[%emt 0:00:27]} 36. Qf3 {[%emt 0:00:37]} Qe8 {[%emt 0:02:28]} 37. Qc3 {[%emt 0:01:16]} Bc6 {[%emt 0:02:44]} 38. Qa3 {[%emt 0:00:11]} Bb7 {[%emt 0:01:05]} 39. Qa5 {[%emt 0:00:07]} Qd7 {[%emt 0:00:08]} 40. Qb6 {[%emt 0:00:00]} Qc8 {[%emt 0:00:00]} 41. f4 {[%emt 0:01:57]} h5 {[%emt 0:02:54]} 42. h3 {[%emt 0:00:32]} Bc6 {[%emt 0:07:02]} 43. Kh2 {[%emt 0:01:04]} Kf8 {[%emt 0:01:25]} 44. g4 {[%emt 0:00:32]} hxg4 {[%emt 0:00:05]} 45. hxg4 {[%emt 0:00:06]} Ke8 {[%emt 0:00:23]} 46. Kg3 {[%emt 0:00:39]} Kd7 {[%emt 0:00:33]} 47. f5 {[%emt 0:02:16]} gxf5 {[%emt 0:00:09]} 48. gxf5 {[%emt 0:00:15]} Bb7 {[%emt 0:05:22]} 49. Kf4 {[%emt 0:00:52]} Bc6 {[%emt 0:00:41]} 50. Bf3 {[%emt 0:01:56]} exf5 {[%emt 0:05:00]} 51. Kxf5 {[%emt 0:02:01]} Ke8+ {[%emt 0:00:43]} 52. Kf4 {[%emt 0:00:07]} Kf8 {[%emt 0:01:00]} 53. Qc7 {[%emt 0:01:48]} Qh3 {[%emt 0:00:13]} 54. Qd8+ {[%emt 0:06:57]} Kg7 {[%emt 0:00:18]} 55. Qg5+ {[%emt 0:00:05]} Kf8 {[%emt 0:00:07]} 56. Qh5 {[%emt 0:00:10]} Qxh5 {[%emt 0:00:50]} 57. Bxh5 {[%emt 0:00:04]} a5 {[%emt 0:05:12]} 58. bxa5 {[%emt 0:00:11]} b4 {[%emt 0:00:04]} 59. Ke3 {[%emt 0:00:12]} b3 {[%emt 0:00:25]} 60. Kd2 {[%emt 0:01:18]} d4 {[%emt 0:00:36]} 61. Kc1 {[%emt 0:00:41]} d3 {[%emt 0:01:27]} 62. Kb2 {[%emt 0:00:18]} Bd5 {[%emt 0:00:17]} 63. Kc3 {[%emt 0:00:33]} Bc4 {[%emt 0:00:42]} 64. c6 {[%emt 0:00:06]} Ke8 {[%emt 0:00:04]} 65. c7 {[%emt 0:00:13]} 1-0

[Event "Polish Youth 1st League 2022"]
[Site "Lublin"]
[Date "2022.06.26"]
[Round "2.23"]
[White "Hertlein, Irena"]
[Black "Barwinska, Ewa"]
[Result "1/2-1/2"]
[ECO "C97"]
[WhiteElo "1873"]
[BlackElo "1825"]
[Annotator "NA RC"]
[PlyCount "103"]
[EventDate "2022.06.24"]
[EventType "team-tourn"]
[EventCountry "POL"]
[SourceTitle "playchess.com"]
[Source "ChessBase"]
[SourceQuality "1"]
[TimeControl "40/5400+30:1800+30"]

1. e4 {[%emt 0:00:03]} e5 {[%emt 0:00:50]} 2. Nf3 {[%emt 0:00:07]} Nc6 {[%emt 0:00:06]} 3. Bb5 {[%emt 0:00:11]} a6 {[%emt 0:00:12]} 4. Ba4 {[%emt 0:00:06]} Nf6 {[%emt 0:00:40]} 5. O-O {[%emt 0:00:59]} b5 {[%emt 0:00:51]} 6. Bb3 {[%emt 0:00:09]} Be7 {[%emt 0:00:47]} 7. Re1 {[%emt 0:00:38]} O-O {[%emt 0:01:25]} 8. c3 {[%emt 0:00:22]} d6 {[%emt 0:01:57]} 9. h3 {[%emt 0:00:11]} Na5 {[%emt 0:04:07]} 10. Bc2 {[%emt 0:00:08]} c5 {[%emt 0:00:09]} 11. d4 {[%emt 0:00:57]} Qc7 {[%emt 0:00:19]} 12. d5 {[%emt 0:11:42]} Bd7 {[%emt 0:06:12]} 13. b3 {[%emt 0:08:13]} g6 {[%emt 0:22:17]} 14. Bh6 {[%emt 0:12:01]} Rfe8 {[%emt 0:02:33]} 15. Nbd2 {[%emt 0:14:40]} Nh5 {[%emt 0:04:49]} 16. Nf1 {[%emt 0:03:26]} Nb7 {[%emt 0:03:33]} 17. Qd2 {[%emt 0:05:57]} a5 {[%emt 0:08:14]} 18. c4 {[%emt 0:11:13]} b4 {[%emt 0:09:29]} 19. a4 {[%emt 0:01:50]} Nd8 {[%emt 0:01:47]} 20. g4 {[%emt 0:06:38]} Ng7 {[%emt 0:00:40]} 21. Ng3 {[%emt 0:05:50]} f6 {[%emt 0:04:20]} 22. Kg2 {[%emt 0:02:13]} Nf7 {[%emt 0:01:06]} 23. Rh1 {[%emt 0:03:25]} Nxh6 {[%emt 0:04:24]} 24. Qxh6 {[%emt 0:00:01]} Bf8 {[%emt 0:00:45]} 25. Qe3 {[%emt 0:00:42]} Qc8 {[%emt 0:02:44]} 26. Rag1 {[%emt 0:04:10]} Be7 {[%emt 0:02:48]} 27. Kf1 {[%emt 0:01:49]} Kf7 {[%emt 0:01:43]} 28. Nd2 {[%emt 0:02:04]} Rh8 {[%emt 0:01:54]} 29. Ke1 {[%emt 0:02:40]} Ke8 {[%emt 0:04:02]} 30. f3 {[%emt 0:02:21]} Kd8 {[%emt 0:01:01]} 31. h4 {[%emt 0:00:12]} h6 {[%emt 0:01:32]} 32. h5 {[%emt 0:00:25]} g5 {[%emt 0:04:16]} 33. Nf5 {[%emt 0:00:57]} Bf8 {[%emt 0:01:12]} 34. Ke2 {[%emt 0:00:30]} Kc7 {[%emt 0:00:52]} 35. Rg2 {[%emt 0:00:32]} Qe8 {[%emt 0:01:16]} 36. Kd1 {[%emt 0:00:28]} Rb8 {[%emt 0:01:11]} 37. Ke2 {[%emt 0:00:34]} Qf7 {[%emt 0:00:48]} 38. Rgh2 {[%emt 0:00:18]} Be7 {[%emt 0:01:01]} 39. Kf2 {[%emt 0:00:35]} Bf8 {[%emt 0:00:52]} 40. Rg1 {[%emt 0:00:00]} Rd8 {[%emt 0:00:00]} 41. Re1 {[%emt 0:04:45]} Bc8 {[%emt 0:06:40]} 42. Nf1 {[%emt 0:02:13]} Be7 {[%emt 0:03:25]} 43. N1g3 {[%emt 0:00:55]} Rde8 {[%emt 0:01:08]} 44. Qd2 {[%emt 0:01:25]} Bd7 {[%emt 0:01:33]} 45. Kg1 {[%emt 0:00:20]} Bd8 {[%emt 0:01:35]} 46. Re3 {[%emt 0:01:26]} Bc8 {[%emt 0:02:05]} 47. Ne2 {[%emt 0:00:43]} Be7 {[%emt 0:01:31]} 48. Nc1 {[%emt 0:00:11]} Bf8 {[%emt 0:00:29]} 49. Nd3 {[%emt 0:01:21]} Rd8 {[%emt 0:00:59]} 50. Re1 {[%emt 0:00:23]} Kb6 {[%emt 0:02:17]} 51. Qf2 {[%emt 0:02:12]} Qc7 {[%emt 0:02:58]} 52. Rd1 {[%emt 0:01:20]} 1/2-1/2

[Event "Polish Youth 1st League 2022"]
[Site "Lublin"]
[Date "2022.06.26"]
[Round "2.24"]
[White "Matuszewska, Kinga"]
[Black "Duda, Aleksandra"]
[Result "0-1"]
[ECO "A13"]
[WhiteElo "1085"]
[BlackElo "1453"]
[Annotator "NA RC"]
[PlyCount "96"]
[EventDate "2022.06.24"]
[EventType "team-tourn"]
[EventCountry "POL"]
[SourceTitle "playchess.com"]
[Source "ChessBase"]
[SourceQuality "1"]
[TimeControl "40/5400+30:1800+30"]

1. c4 {[%emt 0:00:02]} e6 {[%emt 0:00:06]} 2. Nc3 {[%emt 0:00:11]} d5 {[%emt 0:00:10]} 3. cxd5 {[%emt 0:00:28]} exd5 {[%emt 0:00:08]} 4. d4 {[%emt 0:00:21]} Nf6 {[%emt 0:00:12]} 5. g3 {[%emt 0:00:40]} Be7 {[%emt 0:00:39]} 6. Bg2 {[%emt 0:00:23]} O-O {[%emt 0:00:25]} 7. e3 {[%emt 0:03:16]} c6 {[%emt 0:00:37]} 8. Nge2 {[%emt 0:00:11]} Bf5 {[%emt 0:00:46]} 9. O-O {[%emt 0:01:02]} Nbd7 {[%emt 0:01:29]} 10. b3 {[%emt 0:02:54]} Re8 {[%emt 0:02:48]} 11. a4 {[%emt 0:02:49]} a5 {[%emt 0:01:37]} 12. Ba3 {[%emt 0:00:58]} Bxa3 {[%emt 0:01:40]} 13. Rxa3 {[%emt 0:00:08]} h6 {[%emt 0:02:13]} 14. Qd2 {[%emt 0:04:52]} Ne4 {[%emt 0:02:37]} 15. Nxe4 {[%emt 0:01:06]} Bxe4 {[%emt 0:00:20]} 16. Raa1 {[%emt 0:04:19]} Nf6 {[%emt 0:04:18]} 17. Rac1 {[%emt 0:03:18]} Bxg2 {[%emt 0:01:35]} 18. Kxg2 {[%emt 0:00:08]} Ne4 {[%emt 0:00:09]} 19. Qb2 {[%emt 0:00:52]} Qe7 {[%emt 0:02:20]} 20. Nc3 {[%emt 0:02:00]} f5 {[%emt 0:02:26]} 21. f3 {[%emt 0:03:54]} Nxc3 {[%emt 0:01:06]} 22. Rxc3 {[%emt 0:00:09]} Qg5 {[%emt 0:01:22]} 23. Qd2 {[%emt 0:02:43]} Re6 {[%emt 0:01:37]} 24. h4 {[%emt 0:03:39]} Qe7 {[%emt 0:01:21]} 25. Kf2 {[%emt 0:01:45]} Re8 {[%emt 0:01:04]} 26. f4 {[%emt 0:06:48]} g5 {[%emt 0:03:46]} 27. hxg5 {[%emt 0:03:52]} hxg5 {[%emt 0:00:07]} 28. Rh1 {[%emt 0:01:09]} gxf4 {[%emt 0:00:21]} 29. gxf4 {[%emt 0:01:07]} Rg6 {[%emt 0:00:15]} 30. Rg1 {[%emt 0:02:59]} Qh4+ {[%emt 0:00:25]} 31. Kf1 {[%emt 0:04:05]} Qh3+ {[%emt 0:00:19]} 32. Ke2 {[%emt 0:04:22]} Rxg1 {[%emt 0:00:15]} 33. Kd3 {[%emt 0:00:29]} Qf1+ {[%emt 0:00:44]} 34. Qe2 {[%emt 0:00:43]} Qxe2+ {[%emt 0:00:15]} 35. Kxe2 {[%emt 0:00:06]} Kf7 {[%emt 0:00:19]} 36. Kf2 {[%emt 0:01:16]} Reg8 {[%emt 0:00:07]} 37. b4 {[%emt 0:04:20]} R1g2+ {[%emt 0:00:37]} 38. Kf1 {[%emt 0:01:01]} axb4 {[%emt 0:00:51]} 39. Rb3 {[%emt 0:00:12]} Ra2 {[%emt 0:02:08]} 40. Rxb4 {[%emt 0:00:00]} Ra8 {[%emt 0:00:00]} 41. Rxb7+ {[%emt 0:01:07]} Ke6 {[%emt 0:00:35]} 42. Rc7 {[%emt 0:00:28]} Ra6 {[%emt 0:00:14]} 43. Rb7 {[%emt 0:00:36]} R6xa4 {[%emt 0:00:11]} 44. Rb3 {[%emt 0:00:30]} Rc4 {[%emt 0:00:20]} 45. Rb1 {[%emt 0:01:03]} Rc3 {[%emt 0:00:05]} 46. Re1 {[%emt 0:01:00]} Rcc2 {[%emt 0:00:07]} 47. Kg1 {[%emt 0:00:40]} Re2 {[%emt 0:00:12]} 48. Rc1 {[%emt 0:00:24]} Kd6 {[%emt 0:00:18]} 0-1

[Event "Polish Youth 1st League 2022"]
[Site "Lublin"]
[Date "2022.06.26"]
[Round "2.25"]
[White "Suder, Jakub"]
[Black "Kania, Dominik"]
[Result "1/2-1/2"]
[ECO "A21"]
[WhiteElo "2306"]
[BlackElo "1872"]
[Annotator "TA"]
[PlyCount "76"]
[EventDate "2022.06.24"]
[EventType "team-tourn"]
[EventCountry "POL"]
[SourceTitle "playchess.com"]
[Source "ChessBase"]
[SourceQuality "1"]
[TimeControl "40/5400+30:1800+30"]

{[%evp 9,76,20,20,22,22,14,10,0,0,0,0,0,0,-38,-22,-26,-23,-30,-16,-23,-33,-25,-22,-50,-39,-187,-182,-182,-180,-164,-153,-433,-414,-281,-363,-431,-248,-247,-215,-197,-141,-149,-114,-327,-293,-369,-347,-337,-231,-417,-418,-1008,-977,-993,-985,-29984,-29985,-29985,-29986,-29986,-229,-229,-207,-207,0,-181,0,-154,0]} 1. c4 {[%emt 0:00:08]} d6 {[%emt 0:01:14]} 2. Nc3 {[%emt 0:00:06]} e5 {[%emt 0:00:35]} 3. Nf3 {[%emt 0:00:11]} f5 {[%emt 0:01:02]} 4. g3 {[%emt 0:01:33]} Nf6 {[%emt 0:00:30]} 5. d4 e4 {[%emt 0:00:51]} 6. Nh4 {[%emt 0:02:48] A21: English Opening: 1...e5 2 Nc3.} c6 {[%emt 0:08:21]} 7. Bg5 {[%emt 0:02:00]} Na6 {[%emt 0:07:25]} 8. Bh3 {[%emt 0:02:50] The position is equal.} g6 {[%emt 0:01:24]} 9. O-O {[%emt 0:00:44]} Bg7 {[%emt 0:01:11]} 10. f3 {[%emt 0:06:35]} exf3 {[%emt 0:01:39]} (10... h6 $2 11. Bc1 (11. Nxg6 hxg5 12. Nxh8 Bxh8 $16) 11... f4 12. Bxc8 Qxc8 13. Nxg6 fxg3 14. hxg3 $16 (14. Nxh8 $2 Qh3 $19) (14. Nxe4 Nxe4 15. Qd3 Qh3 $17)) 11. exf3 {[%emt 0:07:42]} O-O {[%emt 0:02:44]} 12. Qd2 {[%emt 0:01:46]} Nc7 {[%emt 0:12:31]} 13. Rad1 {[%emt 0:04:30] [#]} Re8 $146 {[%emt 0:05:37]} ({Predecessor:} 13... Be6 14. b3 Qd7 15. Rfe1 Rae8 16. Ng2 Nh5 17. Re2 b5 18. Qd3 bxc4 19. bxc4 Qf7 {1-0 (39) Kirov,N (2470)-Berry,S (2320) Cappelle la Grande 1994}) 14. Bh6 {[%emt 0:04:16]} b5 {[%emt 0:14:28]} 15. cxb5 {[%emt 0:03:04]} cxb5 {[%emt 0:01:02][%cal Bc6b5,Bb5b4][%mdl 32]} 16. Rfe1 {[%emt 0:01:23]} b4 {[%emt 0:07:30]} 17. Rxe8+ {[%emt 0:05:05]} (17. Ne2 $15) 17... Qxe8 $19 {[%emt 0:08:06]} 18. Nb1 {[%emt 0:07:13]} Bxh6 {[%emt 0:05:58]} 19. Qxh6 {[%emt 0:00:08] [#]} f4 $1 {[%emt 0:03:36]} 20. Bg2 $2 {[%emt 0:06:26]} (20. Bf1 $17 Qe3+ 21. Kh1) 20... Qe3+ {[%emt 0:01:29]} ({But not} 20... Qe2 $2 21. Rf1 Ncd5 22. Nxg6 Qe3+ 23. Rf2 $19) 21. Kh1 {[%emt 0:00:11][%cal Oh4g6]} Ncd5 {[%emt 0:05:34] ...Ba6 is the strong threat.} 22. Qg5 {[%emt 0:04:45]} Ba6 {[%emt 0:02:34]} (22... Be6 $142 {Hoping for ...Rc8.} 23. Bf1 Rc8) 23. Nf5 {[%emt 0:02:37]} Qe2 {[%emt 0:00:59]} 24. Rg1 {[%emt 0:01:03]} Bd3 $40 {[%emt 0:02:59][%mdl 128] Black is out for blood.} ({Black should play} 24... Qxb2 $19 {aiming for ...Rc8.} 25. Ne7+ Nxe7 26. Qxf6 Nf5) 25. Nxd6 $17 {[%emt 0:00:48]} Qxb2 {[%emt 0:01:50]} 26. Qe5 $2 {[%emt 0:07:18]} Bxb1 $19 {[%emt 0:01:24]} 27. gxf4 {[%emt 0:01:24]} Bd3 {[%emt 0:00:51]} 28. f5 {[%emt 0:01:51]} Qe2 {[%emt 0:00:20]} 29. Ne4 $2 {[%emt 0:00:51]} (29. f4 {was called for.} Qxe5 30. fxe5) 29... Bxe4 {[%emt 0:00:36]} 30. Qe6+ {[%emt 0:03:05]} (30. fxe4 $142 Re8 31. Qd6) 30... Kg7 {[%emt 0:00:22] Strongly threatening ...Re8.} 31. fxg6 {[%emt 0:00:22]} Bxf3 {[%emt 0:00:46]} 32. Qf7+ {[%emt 0:00:17]} Kh6 {[%emt 0:00:04]} 33. gxh7 {[%emt 0:00:34]} Bxg2+ {[%emt 0:00:50]} 34. Rxg2 {[%emt 0:00:02] [#]} Qf1+ $2 {[%emt 0:00:03]} (34... Qe1+ $1 {mates} 35. Rg1 Qe4+ 36. Rg2 Ng4 37. Qf1 Nf4 38. Qg1 Nh3 39. h8=Q+ Rxh8 40. Qc1+ Ne3 41. Qxe3+ Qxe3 42. Rg4 Qf3+ 43. Rg2 Qf1+ 44. Rg1 Qxg1#) 35. Rg1 {[%emt 0:00:01][%csl Gg1][%cal Rf7g6]} Qf3+ {[%emt 0:00:01]} 36. Rg2 {[%emt 0:00:01][%csl Gg2][%cal Rf7g6]} Qf1+ {[%emt 0:01:29]} (36... Ne3 $2 37. Qg6#) 37. Rg1 {[%emt 0:00:01][%csl Gg1][%cal Rf7g6] The board is on fire.} Qf3+ {[%emt 0:00:03]} 38. Rg2 {[%emt 0:00:07][%csl Gg2][%cal Rf7g6]} Qf1+ $2 {[%emt 0:00:59] Weighted Error Value: White=0.75/Black=0.46} (38... Ne3 $2 39. Qg6#) (38... Qd1+ $17 39. Rg1 Qf3+) 1/2-1/2